[Event "36th Zalakaros Festival 2017"]
[Site "Zalakaros"]
[Date "2017.05.22"]
[Round "5"]
[White "Paschall, William M"]
[Black "Injac, Teodora"]
[Result "1/2-1/2"]
[ECO "A10"]
[WhiteElo "2380"]
[BlackElo "2296"]
[Annotator "NA"]
[PlyCount "67"]
[EventDate "2017.??.??"]
[EventType "swiss"]
[EventCountry "HUN"]
[SourceTitle "playchess.com"]
[Source "ChessBase"]
[SourceQuality "1"]
[TimeControl "40/5400+30:1800+30"]

1. c4 {[%emt 0:00:29]} g6 {[%emt 0:00:37]} 2. Nc3 {[%emt 0:01:42]} Bg7 {[%emt 0:00:05]} 3. g3 {[%emt 0:00:39]} Nf6 {[%emt 0:00:29]} 4. Bg2 O-O {[%emt 0:00:38]} 5. Nf3 {[%emt 0:02:07]} d6 {[%emt 0:01:52]} 6. O-O {[%emt 0:04:18]} e5 {[%emt 0:00:07]} 7. d3 {[%emt 0:02:24]} Nc6 {[%emt 0:00:20]} 8. Bg5 {[%emt 0:00:50]} h6 {[%emt 0:01:25]} 9. Bxf6 {[%emt 0:02:29]} Qxf6 {[%emt 0:04:25]} 10. Rc1 {[%emt 0:03:25]} Be6 {[%emt 0:08:55]} 11. Nd2 {[%emt 0:03:02]} Qd8 {[%emt 0:03:26]} 12. b4 {[%emt 0:02:27]} Qc8 {[%emt 0:06:44]} 13. b5 {[%emt 0:01:02]} Ne7 {[%emt 0:00:03]} 14. Nd5 $14 {[%emt 0:00:37]} Nxd5 {[%emt 0:18:45]} 15. cxd5 {[%emt 0:00:25]} Bg4 {[%emt 0:00:43]} 16. Nc4 {[%emt 0:14:37]} Qd7 {[%emt 0:03:46]} 17. f3 {[%emt 0:01:35]} Bh3 {[%emt 0:00:45]} 18. Bxh3 {[%emt 0:07:12]} Qxh3 {[%emt 0:00:03]} 19. e4 {[%emt 0:00:23]} h5 20. Qd2 {[%emt 0:09:28]} Kh7 {[%emt 0:05:46]} 21. Rc2 {[%emt 0:03:36]} Bh6 {[%emt 0:01:48]} 22. Qg2 {[%emt 0:01:37]} Qd7 {[%emt 0:01:45]} 23. a4 {[%emt 0:02:19]} a6 {[%emt 0:00:55]} 24. Rb2 {[%emt 0:02:28]} axb5 {[%emt 0:01:24]} 25. axb5 {[%emt 0:00:06]} b6 {[%emt 0:04:27]} 26. Kh1 {[%emt 0:02:28]} f5 {[%emt 0:01:56]} 27. Qh3 {[%emt 0:11:46]} Qf7 {[%emt 0:02:22]} 28. Qg2 {[%emt 0:04:12]} fxe4 {[%emt 0:07:03]} 29. dxe4 {[%emt 0:00:42]} Qd7 {[%emt 0:00:30]} 30. Qe2 {[%emt 0:03:03]} Qh3 {[%emt 0:01:46]} 31. Qg2 {[%emt 0:00:50]} Qd7 {[%emt 0:11:04]} 32. Qe2 {[%emt 0:00:41]} Qh3 {[%emt 0:00:06]} 33. Qg2 {[%emt 0:00:06]} Qd7 {[%emt 0:01:55]} 34. Qe2 1/2-1/2

[Event "36th Zalakaros Festival 2017"]
[Site "Zalakaros"]
[Date "2017.05.22"]
[Round "5"]
[White "Arman, Deniz"]
[Black "Varga, Klara"]
[Result "1-0"]
[ECO "C10"]
[WhiteElo "2377"]
[BlackElo "2240"]
[Annotator "NA"]
[PlyCount "55"]
[EventDate "2017.??.??"]
[EventType "swiss"]
[EventCountry "HUN"]
[SourceTitle "playchess.com"]
[Source "ChessBase"]
[SourceQuality "1"]
[TimeControl "40/5400+30:1800+30"]

1. d4 {[%emt 0:00:04]} e6 {[%emt 0:00:42]} 2. e4 {[%emt 0:01:17]} d5 {[%emt 0:00:05]} 3. Nc3 {[%emt 0:00:13]} Nc6 {[%emt 0:00:12]} 4. Nf3 {[%emt 0:02:30]} Nf6 {[%emt 0:00:23]} 5. Bd3 {[%emt 0:03:40]} Bb4 {[%emt 0:00:44]} 6. O-O {[%emt 0:04:44]} Bxc3 {[%emt 0:01:18]} 7. exd5 {[%emt 0:00:29]} Nxd5 {[%emt 0:00:08]} 8. bxc3 {[%emt 0:00:10]} Nxc3 {[%emt 0:00:02]} 9. Qd2 {[%emt 0:03:01]} Nd5 {[%emt 0:00:06]} 10. Ba3 {[%emt 0:01:31]} Nde7 {[%emt 0:00:30]} 11. Qg5 {[%emt 0:08:17]} Ng6 {[%emt 0:22:56]} 12. Qg3 {[%emt 0:00:55]} Nce7 $18 {[%emt 0:07:38]} 13. h4 {[%emt 0:00:55]} O-O {[%emt 0:00:08]} 14. h5 {[%emt 0:02:45]} Nh8 {[%emt 0:01:34]} 15. Ng5 {[%emt 0:09:39]} f5 {[%emt 0:01:30]} 16. Bc4 {[%emt 0:04:56]} Rf6 {[%emt 0:01:09]} 17. d5 {[%emt 0:07:13]} Nxd5 {[%emt 0:16:23]} 18. Bxd5 {[%emt 0:00:59]} exd5 {[%emt 0:00:02]} 19. Rfe1 {[%emt 0:05:52]} f4 {[%emt 0:01:55]} 20. Qc3 {[%emt 0:09:37]} Rc6 {[%emt 0:08:08]} 21. Qd3 {[%emt 0:00:52]} g6 {[%emt 0:08:41]} 22. Re7 {[%emt 0:03:10]} Rd6 {[%emt 0:14:45]} 23. Bxd6 {[%emt 0:01:46]} Qxd6 {[%emt 0:00:06]} 24. Re8+ {[%emt 0:03:08]} Kg7 {[%emt 0:00:02]} 25. Rxh8 {[%emt 0:00:14]} Qe5 {[%emt 0:06:33]} 26. Rxh7+ {[%emt 0:00:06]} Kf8 {[%emt 0:00:06]} 27. Qa3+ {[%emt 0:01:47]} Kg8 {[%emt 0:00:55]} 28. Qe7 {[%emt 0:01:47]} 1-0

[Event "36th Zalakaros Festival 2017"]
[Site "Zalakaros"]
[Date "2017.05.22"]
[Round "5"]
[White "Gara, Ticia"]
[Black "Rakesh Kumar Jena"]
[Result "1-0"]
[ECO "A39"]
[WhiteElo "2329"]
[BlackElo "2288"]
[Annotator "NA"]
[PlyCount "79"]
[EventDate "2017.??.??"]
[EventType "swiss"]
[EventCountry "HUN"]
[SourceTitle "playchess.com"]
[Source "ChessBase"]
[SourceQuality "1"]
[TimeControl "40/5400+30:1800+30"]

1. Nf3 {[%emt 0:00:58]} c5 {[%emt 0:00:46]} 2. c4 {[%emt 0:00:39]} Nf6 {[%emt 0:00:07]} 3. Nc3 {[%emt 0:01:17]} Nc6 {[%emt 0:00:06]} 4. g3 {[%emt 0:00:54]} g6 {[%emt 0:00:06]} 5. Bg2 {[%emt 0:00:21]} Bg7 {[%emt 0:00:07]} 6. O-O {[%emt 0:00:16]} O-O {[%emt 0:00:06]} 7. d4 {[%emt 0:00:24]} cxd4 {[%emt 0:00:06]} 8. Nxd4 {[%emt 0:00:05]} Nxd4 {[%emt 0:00:03]} 9. Qxd4 {[%emt 0:00:07]} d6 {[%emt 0:00:03]} 10. Qd3 {[%emt 0:00:58]} Bf5 {[%emt 0:00:06]} 11. e4 {[%emt 0:00:49]} Be6 {[%emt 0:00:05]} 12. b3 {[%emt 0:01:08]} Nd7 {[%emt 0:01:15]} 13. Bd2 {[%emt 0:00:37]} a5 {[%emt 0:00:22]} 14. Rac1 {[%emt 0:00:53]} Ne5 {[%emt 0:17:27]} 15. Qe2 {[%emt 0:04:08]} f5 {[%emt 0:01:57]} 16. f4 {[%emt 0:08:03]} Nc6 {[%emt 0:00:13]} 17. Kh1 $16 {[%emt 0:13:10]} Kh8 {[%emt 0:04:33]} 18. Rfe1 {[%emt 0:01:42]} fxe4 {[%emt 0:02:40]} 19. Nxe4 {[%emt 0:03:45]} Bf5 {[%emt 0:03:42]} 20. Bc3 {[%emt 0:10:11]} e5 {[%emt 0:02:37]} 21. Rcd1 {[%emt 0:13:29]} Nd4 {[%emt 0:01:24]} 22. Bxd4 {[%emt 0:03:56]} exd4 {[%emt 0:01:18]} 23. Ng5 {[%emt 0:03:29]} Qd7 {[%emt 0:15:00]} 24. Qe7 {[%emt 0:03:07]} Qxe7 {[%emt 0:00:37]} 25. Rxe7 {[%emt 0:00:04]} Bc2 {[%emt 0:00:04]} 26. Rd2 {[%emt 0:07:21]} d3 {[%emt 0:00:07]} 27. Be4 {[%emt 0:06:59]} a4 {[%emt 0:04:28]} 28. Bxd3 {[%emt 0:04:40]} axb3 {[%emt 0:00:41]} 29. axb3 {[%emt 0:00:28]} Bxb3 {[%emt 0:00:27]} 30. Rxb7 {[%emt 0:02:07]} Ra1+ {[%emt 0:04:56]} 31. Kg2 {[%emt 0:00:03]} Ba4 {[%emt 0:00:03]} 32. Be4 {[%emt 0:00:44]} h6 {[%emt 0:05:25]} 33. Rxg7 {[%emt 0:04:25]} hxg5 {[%emt 0:00:48]} 34. Rxg6 {[%emt 0:00:30]} gxf4 {[%emt 0:00:09]} 35. Rh6+ {[%emt 0:02:27]} Kg7 {[%emt 0:00:08]} 36. Rg6+ {[%emt 0:00:10]} Kf7 {[%emt 0:05:37]} 37. Rgxd6 {[%emt 0:00:57]} Re1 {[%emt 0:01:16]} 38. Bf3 {[%emt 0:00:57]} Ke7 {[%emt 0:00:41]} 39. g4 {[%emt 0:00:50]} Rc1 {[%emt 0:00:38]} 40. R6d4 {[%emt 0:00:00]} 1-0

[Event "36th Zalakaros Festival 2017"]
[Site "Zalakaros"]
[Date "2017.05.22"]
[Round "5"]
[White "Szabo, Marton Mihaly"]
[Black "Sankalp Gupta"]
[Result "1-0"]
[ECO "B31"]
[WhiteElo "2298"]
[BlackElo "2269"]
[Annotator "ChessBase"]
[PlyCount "89"]
[EventDate "2017.??.??"]
[EventType "swiss"]
[EventCountry "HUN"]
[SourceTitle "playchess.com"]
[Source "ChessBase"]
[SourceQuality "1"]
[TimeControl "40/5400+30:1800+30"]

1. e4 {[%emt 0:00:02]} c5 {[%emt 0:03:24]} 2. Nf3 {[%emt 0:00:18]} Nc6 {[%emt 0:00:02]} 3. Bb5 {[%emt 0:00:30]} g6 {[%emt 0:00:01]} 4. Bxc6 {[%emt 0:00:39]} dxc6 {[%emt 0:00:02]} 5. d3 {[%emt 0:00:37]} Bg7 {[%emt 0:00:03]} 6. h3 {[%emt 0:00:28]} Nf6 {[%emt 0:00:06]} 7. Nc3 {[%emt 0:00:36]} O-O {[%emt 0:00:12]} 8. O-O {[%emt 0:00:38]} Nd7 {[%emt 0:01:33]} 9. Be3 {[%emt 0:01:31]} e5 {[%emt 0:00:32]} 10. Qd2 {[%emt 0:01:24]} Re8 {[%emt 0:00:50]} 11. Bh6 {[%emt 0:02:02]} Nf8 {[%emt 0:03:38]} 12. a4 {[%emt 0:09:27]} a5 {[%emt 0:02:09]} 13. Bxg7 {[%emt 0:08:32]} Kxg7 14. Ne2 {[%emt 0:04:33]} b6 {[%emt 0:07:04]} 15. Rad1 {[%emt 0:00:30]} Qd6 {[%emt 0:09:05]} 16. Nh2 {[%emt 0:09:56]} Ne6 {[%emt 0:08:42]} 17. c3 {[%emt 0:13:19]} h5 {[%emt 0:10:59]} 18. f4 {[%emt 0:09:49]} exf4 {[%emt 0:00:39]} 19. Nxf4 {[%emt 0:00:57]} Ra7 {[%emt 0:14:08]} 20. Nxe6+ {[%emt 0:13:29]} Bxe6 {[%emt 0:00:05]} 21. Nf3 {[%emt 0:03:15]} Rd7 {[%emt 0:15:03]} 22. Qf2 {[%emt 0:07:30]} Red8 {[%emt 0:08:46]} 23. e5 {[%emt 0:07:20]} Qe7 {[%emt 0:01:31]} 24. Qe3 {[%emt 0:01:27]} Bc4 {[%emt 0:02:56]} 25. Ng5 {[%emt 0:02:56]} Rxd3 {[%emt 0:02:16]} 26. Rxd3 {[%emt 0:00:20]} Rxd3 {[%emt 0:00:02]} 27. Qf4 {[%emt 0:00:42]} Rd5 {[%emt 0:05:00]} 28. Re1 {[%emt 0:00:35]} b5 {[%emt 0:01:46]} 29. h4 {[%emt 0:00:18]} Bd3 {[%emt 0:01:27]} 30. e6 {[%emt 0:00:34]} f6 {[%emt 0:00:55]} 31. Nf7 {[%emt 0:00:21]} g5 {[%emt 0:00:59]} 32. hxg5 {[%emt 0:00:38]} fxg5 {[%emt 0:01:42]} 33. Qb8 {[%emt 0:00:30]} h4 {[%emt 0:00:48]} 34. Qh8+ {[%emt 0:00:15]} Kg6 {[%emt 0:00:01]} 35. Qh6+ {[%emt 0:00:05]} Kf5 {[%emt 0:00:04]} 36. Qg7 {[%emt 0:01:15]} Kf4 {[%emt 0:01:02]} 37. Re5 {[%emt 0:00:37]} Be4 {[%emt 0:00:54]} 38. Rxd5 {[%emt 0:00:31]} Bxd5 {[%emt 0:00:30]} 39. Qe5+ {[%emt 0:00:29]} Kg4 {[%emt 0:00:01]} 40. Nh6+ {[%emt 0:00:00]} Kh5 {[%emt 0:00:02]} 41. Nf5 {[%emt 0:00:46]} Qh7 {[%emt 0:02:48]} 42. e7 {[%emt 0:01:51]} Bf7 {[%emt 0:00:07]} 43. e8=Q {[%emt 0:00:39]} Bxe8 {[%emt 0:00:08]} 44. Qxe8+ {[%emt 0:00:10]} Kg4 {[%emt 0:01:10]} 45. Qe2+ {[%emt 0:00:27]} 1-0

[Event "36th Zalakaros Festival 2017"]
[Site "Zalakaros"]
[Date "2017.05.22"]
[Round "5"]
[White "Gazik, Igor"]
[Black "Karacsonyi, Gellert"]
[Result "1-0"]
[ECO "B30"]
[WhiteElo "2292"]
[BlackElo "2189"]
[Annotator "NA"]
[PlyCount "67"]
[EventDate "2017.??.??"]
[EventType "swiss"]
[EventCountry "HUN"]
[SourceTitle "playchess.com"]
[Source "ChessBase"]
[SourceQuality "1"]
[TimeControl "40/5400+30:1800+30"]

1. e4 {[%emt 0:00:32]} c5 {[%emt 0:00:43]} 2. Nf3 {[%emt 0:00:54]} Nc6 {[%emt 0:00:12]} 3. Nc3 {[%emt 0:00:32]} g6 {[%emt 0:00:15]} 4. g3 {[%emt 0:00:37]} Bg7 {[%emt 0:01:37]} 5. Bg2 {[%emt 0:00:07]} d6 {[%emt 0:00:25]} 6. d3 {[%emt 0:00:06]} e6 {[%emt 0:00:15]} 7. Be3 {[%emt 0:00:24]} Nge7 {[%emt 0:05:31]} 8. d4 {[%emt 0:08:22]} Qb6 {[%emt 0:07:49]} 9. Ne2 {[%emt 0:13:36]} Qxb2 {[%emt 0:21:28]} 10. O-O {[%emt 0:02:39]} O-O {[%emt 0:06:28]} 11. Qd2 {[%emt 0:04:35]} Qa3 {[%emt 0:04:18]} 12. Rfd1 {[%emt 0:17:19]} c4 {[%emt 0:01:40]} 13. Bh6 {[%emt 0:02:15]} d5 {[%emt 0:01:50]} 14. e5 {[%emt 0:04:06]} Bd7 {[%emt 0:10:07]} 15. Re1 {[%emt 0:03:03]} Rfc8 {[%emt 0:05:01]} 16. Qf4 {[%emt 0:07:40]} Bh8 {[%emt 0:04:35]} 17. g4 {[%emt 0:04:48]} Nd8 {[%emt 0:04:27]} 18. Bg5 {[%emt 0:16:56]} Nec6 {[%emt 0:03:44]} 19. c3 {[%emt 0:02:36]} Qf8 {[%emt 0:02:16]} 20. h4 {[%emt 0:00:18]} f5 {[%emt 0:04:27]} 21. exf6 {[%emt 0:00:18]} Nf7 {[%emt 0:00:08]} 22. Qh2 {[%emt 0:05:30]} Nd6 {[%emt 0:10:20]} 23. Bh6 {[%emt 0:00:30]} Qxh6 {[%emt 0:00:49]} 24. Qxd6 {[%emt 0:00:01]} Rd8 {[%emt 0:00:30]} 25. g5 {[%emt 0:01:23]} Qf8 {[%emt 0:00:18]} 26. Qxf8+ {[%emt 0:00:14]} Kxf8 {[%emt 0:00:49]} 27. Nf4 {[%emt 0:00:05]} Kf7 {[%emt 0:00:14]} 28. Bh3 {[%emt 0:00:18]} Re8 {[%emt 0:00:56]} 29. Nxd5 {[%emt 0:00:21]} Rac8 {[%emt 0:02:21]} 30. Ne5+ {[%emt 0:01:53]} Nxe5 {[%emt 0:00:08]} 31. dxe5 {[%emt 0:00:03]} Bc6 {[%emt 0:00:45]} 32. Nf4 {[%emt 0:00:06]} Rcd8 {[%emt 0:00:20]} 33. Rad1 {[%emt 0:00:14]} Bd7 {[%emt 0:00:53]} 34. Rd4 {[%emt 0:00:16]} 1-0

[Event "36th Zalakaros Festival 2017"]
[Site "Zalakaros"]
[Date "2017.05.22"]
[Round "5"]
[White "Chovan, Milan"]
[Black "Borsos, Bogdan"]
[Result "0-1"]
[ECO "A13"]
[WhiteElo "2288"]
[BlackElo "2321"]
[Annotator "NA"]
[PlyCount "68"]
[EventDate "2017.??.??"]
[EventType "swiss"]
[EventCountry "HUN"]
[SourceTitle "playchess.com"]
[Source "ChessBase"]
[SourceQuality "1"]
[TimeControl "40/5400+30:1800+30"]

1. c4 {[%emt 0:00:02]} e6 {[%emt 0:06:31]} 2. Nc3 {[%emt 0:00:09]} Bb4 {[%emt 0:00:21]} 3. Qb3 {[%emt 0:00:18]} a5 {[%emt 0:00:38]} 4. a3 {[%emt 0:00:11]} Be7 {[%emt 0:00:27]} 5. Nf3 {[%emt 0:02:05]} f5 {[%emt 0:00:21]} 6. d4 {[%emt 0:03:20]} Nf6 {[%emt 0:00:09]} 7. Bg5 {[%emt 0:05:21]} Ne4 {[%emt 0:02:33]} 8. Bxe7 {[%emt 0:00:26]} Qxe7 {[%emt 0:00:07]} 9. e3 {[%emt 0:05:01]} b6 {[%emt 0:00:28]} 10. Be2 {[%emt 0:09:18]} Bb7 {[%emt 0:00:17]} 11. c5 $14 {[%emt 0:01:27]} Nxc3 {[%emt 0:40:26]} 12. bxc3 {[%emt 0:00:35]} a4 {[%emt 0:00:35]} 13. Qb2 {[%emt 0:01:24]} O-O {[%emt 0:02:30]} 14. cxb6 {[%emt 0:00:59]} cxb6 {[%emt 0:00:10]} 15. Qxb6 {[%emt 0:00:30]} Be4 {[%emt 0:00:14]} 16. Qb4 {[%emt 0:10:15]} d6 {[%emt 0:00:08]} 17. O-O {[%emt 0:02:40]} Nc6 {[%emt 0:00:07]} 18. Qb2 {[%emt 0:02:14]} Rab8 {[%emt 0:15:11]} 19. Qa2 {[%emt 0:00:09]} Na5 {[%emt 0:03:04]} 20. Nd2 {[%emt 0:00:42]} Nb3 {[%emt 0:00:51]} 21. Rad1 {[%emt 0:03:29]} Nxd2 {[%emt 0:05:37]} 22. Rxd2 {[%emt 0:00:52]} Rb3 {[%emt 0:02:35]} 23. c4 {[%emt 0:13:32]} Qg5 {[%emt 0:04:32]} 24. g3 {[%emt 0:00:41]} Qh6 {[%emt 0:01:56]} 25. Bd1 {[%emt 0:00:59]} Rfb8 {[%emt 0:02:28]} 26. Bxb3 {[%emt 0:03:23]} axb3 {[%emt 0:00:22]} 27. Qb2 {[%emt 0:01:49]} Bf3 {[%emt 0:00:11]} 28. h4 {[%emt 0:00:30]} Qh5 {[%emt 0:01:04]} 29. Rd3 {[%emt 0:04:04]} Be4 {[%emt 0:00:43]} 30. Rxb3 {[%emt 0:05:40]} Rxb3 {[%emt 0:01:27]} 31. Qxb3 {[%emt 0:00:02]} Qf3 {[%emt 0:00:12]} 32. Qb8+ {[%emt 0:00:06]} Kf7 {[%emt 0:00:13]} 33. Qc7+ {[%emt 0:00:17]} Kg6 {[%emt 0:00:14]} 34. h5+ {[%emt 0:00:08]} Kh6 {[%emt 0:00:10]} 0-1

[Event "36th Zalakaros Festival 2017"]
[Site "Zalakaros"]
[Date "2017.05.22"]
[Round "5"]
[White "Krstulovic, Alex"]
[Black "Pultorak, Jan"]
[Result "1/2-1/2"]
[ECO "E15"]
[WhiteElo "2280"]
[BlackElo "2303"]
[Annotator "NA"]
[PlyCount "74"]
[EventDate "2017.??.??"]
[EventType "swiss"]
[EventCountry "HUN"]
[SourceTitle "playchess.com"]
[Source "ChessBase"]
[SourceQuality "1"]
[TimeControl "40/5400+30:1800+30"]

1. d4 {[%emt 0:00:03]} Nf6 {[%emt 0:00:33]} 2. c4 {[%emt 0:00:04]} e6 {[%emt 0:00:02]} 3. Nf3 {[%emt 0:00:17]} b6 {[%emt 0:00:15]} 4. g3 {[%emt 0:00:05]} Ba6 {[%emt 0:00:18]} 5. Qc2 {[%emt 0:00:18]} Bb7 {[%emt 0:00:25]} 6. Bg2 {[%emt 0:00:06]} c5 {[%emt 0:00:39]} 7. d5 {[%emt 0:00:10]} exd5 {[%emt 0:00:54]} 8. cxd5 {[%emt 0:00:06]} Nxd5 {[%emt 0:01:19]} 9. O-O {[%emt 0:00:45]} Be7 {[%emt 0:02:16]} 10. Rd1 {[%emt 0:00:10]} Qc8 {[%emt 0:02:12]} 11. a3 {[%emt 0:02:06]} Nf6 {[%emt 0:11:25]} 12. Nc3 {[%emt 0:05:31]} O-O {[%emt 0:09:31]} 13. e4 {[%emt 0:03:42]} d6 $11 {[%emt 0:03:08]} 14. Bf4 {[%emt 0:01:52]} Re8 {[%emt 0:02:41]} 15. Nh4 {[%emt 0:17:05]} Nh5 {[%emt 0:08:26]} 16. Nf5 {[%emt 0:00:09]} Nxf4 {[%emt 0:00:33]} 17. gxf4 {[%emt 0:00:05]} Nc6 {[%emt 0:21:04]} 18. Nb5 {[%emt 0:20:44]} Nd4 {[%emt 0:02:25]} 19. Nbxd4 {[%emt 0:01:47]} cxd4 {[%emt 0:00:03]} 20. Qxc8 Raxc8 {[%emt 0:00:16]} 21. Nxe7+ {[%emt 0:01:42]} Rxe7 {[%emt 0:00:01]} 22. Rxd4 {[%emt 0:00:12]} Rce8 {[%emt 0:10:42]} 23. f3 {[%emt 0:13:47]} f5 {[%emt 0:02:28]} 24. exf5 {[%emt 0:03:44]} d5 {[%emt 0:00:23]} 25. Bf1 {[%emt 0:01:03]} Re1 {[%emt 0:01:19]} 26. Rxe1 {[%emt 0:00:36]} Rxe1 {[%emt 0:00:01]} 27. Kf2 {[%emt 0:00:40]} Rc1 {[%emt 0:00:10]} 28. Rd2 {[%emt 0:01:21]} Kf7 {[%emt 0:00:56]} 29. Bb5 {[%emt 0:06:39]} Kf6 {[%emt 0:01:56]} 30. Bd3 {[%emt 0:01:29]} Bc8 {[%emt 0:01:34]} 31. Kg3 {[%emt 0:00:35]} Rg1+ {[%emt 0:00:41]} 32. Kf2 {[%emt 0:00:07]} Rc1 {[%emt 0:00:07]} 33. Kg3 {[%emt 0:00:05]} Rc6 {[%emt 0:07:56]} 34. Re2 {[%emt 0:02:02]} Bxf5 {[%emt 0:06:10]} 35. Bxf5 {[%emt 0:00:08]} Kxf5 {[%emt 0:00:02]} 36. Re5+ {[%emt 0:00:08]} Kf6 {[%emt 0:00:01]} 37. Rxd5 {[%emt 0:00:05]} Rc2 {[%emt 0:00:14]} 1/2-1/2

[Event "36th Zalakaros Festival 2017"]
[Site "Zalakaros"]
[Date "2017.05.22"]
[Round "5"]
[White "Banzea, Alexandru-Bogdan"]
[Black "Hnydiuk, Aleksander"]
[Result "1/2-1/2"]
[ECO "B52"]
[WhiteElo "2278"]
[BlackElo "2390"]
[Annotator "NA"]
[PlyCount "70"]
[EventDate "2017.??.??"]
[EventType "swiss"]
[EventCountry "HUN"]
[SourceTitle "playchess.com"]
[Source "ChessBase"]
[SourceQuality "1"]
[TimeControl "40/5400+30:1800+30"]

1. e4 {[%emt 0:07:50]} c5 {[%emt 0:00:39]} 2. Nf3 {[%emt 0:01:01]} d6 {[%emt 0:00:04]} 3. Bb5+ {[%emt 0:01:12]} Bd7 {[%emt 0:00:03]} 4. Bxd7+ {[%emt 0:00:16]} Qxd7 {[%emt 0:00:02]} 5. c4 {[%emt 0:00:33]} Nf6 {[%emt 0:00:08]} 6. Nc3 {[%emt 0:00:22]} g6 {[%emt 0:00:03]} 7. d4 {[%emt 0:00:11]} cxd4 {[%emt 0:00:02]} 8. Nxd4 {[%emt 0:00:12]} Bg7 {[%emt 0:00:03]} 9. f3 {[%emt 0:00:17]} O-O {[%emt 0:00:03]} 10. Be3 {[%emt 0:00:13]} Rc8 {[%emt 0:00:05]} 11. b3 {[%emt 0:00:09]} a6 {[%emt 0:00:43]} 12. Qd2 {[%emt 0:00:39]} Nc6 {[%emt 0:02:44]} 13. a4 {[%emt 0:04:06]} e6 {[%emt 0:00:06]} 14. a5 {[%emt 0:20:22] [#]} (14. O-O $11) 14... d5 $1 {[%emt 0:13:37]} 15. Na4 $17 {[%emt 0:04:28]} ({White should play} 15. cxd5 exd5 16. Na4) 15... Nxd4 {[%emt 0:03:37]} 16. Bxd4 {[%emt 0:00:21]} dxc4 {[%emt 0:00:54]} 17. Rd1 {[%emt 0:08:23]} e5 {[%emt 0:18:32]} 18. Be3 {[%emt 0:21:08]} Qxd2+ {[%emt 0:02:13]} 19. Bxd2 {[%emt 0:00:34]} Rab8 {[%emt 0:11:02]} 20. Nb6 {[%emt 0:02:55]} c3 {[%emt 0:00:50]} 21. Bg5 {[%emt 0:01:41]} Rc5 {[%emt 0:14:50]} 22. Bxf6 {[%emt 0:03:26]} c2 {[%emt 0:01:13]} 23. Rc1 {[%emt 0:02:26]} Bxf6 {[%emt 0:00:30]} 24. Nc4 {[%emt 0:00:25]} Rbc8 {[%emt 0:06:21]} 25. O-O {[%emt 0:03:24]} Bg5 {[%emt 0:13:27]} 26. Rxc2 {[%emt 0:00:46]} Rxa5 {[%emt 0:00:05]} 27. Nxa5 {[%emt 0:00:52]} Rxc2 {[%emt 0:00:03]} 28. Nxb7 {[%emt 0:00:33]} Rb2 {[%emt 0:02:43]} 29. Na5 {[%emt 0:01:12]} Be3+ {[%emt 0:01:21]} 30. Kh1 {[%emt 0:00:09]} Bd4 {[%emt 0:00:53]} 31. h4 {[%emt 0:04:10]} Bc3 {[%emt 0:00:15]} 32. Ra1 {[%emt 0:00:20]} Kg7 {[%emt 0:08:29]} 33. Nc4 {[%emt 0:01:11]} Rxb3 {[%emt 0:00:44]} 34. Rxa6 {[%emt 0:00:17]} Be1 {[%emt 0:00:16]} 35. Kh2 {[%emt 0:00:42]} Bxh4 {[%emt 0:00:20]} 1/2-1/2

[Event "36th Zalakaros Festival 2017"]
[Site "Zalakaros"]
[Date "2017.05.22"]
[Round "5"]
[White "Pujari, Rucha"]
[Black "Tica, Sven"]
[Result "1/2-1/2"]
[ECO "E15"]
[WhiteElo "2203"]
[BlackElo "2332"]
[Annotator "NA"]
[PlyCount "82"]
[EventDate "2017.??.??"]
[EventType "swiss"]
[EventCountry "HUN"]
[SourceTitle "playchess.com"]
[Source "ChessBase"]
[SourceQuality "1"]
[TimeControl "40/5400+30:1800+30"]

1. d4 {[%emt 0:01:46]} Nf6 {[%emt 0:00:37]} 2. c4 {[%emt 0:00:15]} e6 {[%emt 0:00:04]} 3. Nf3 {[%emt 0:00:06]} b6 {[%emt 0:00:04]} 4. g3 {[%emt 0:02:07]} Bb4+ {[%emt 0:00:05]} 5. Bd2 {[%emt 0:01:43]} Be7 {[%emt 0:00:05]} 6. Bg2 {[%emt 0:01:25]} c6 {[%emt 0:00:04]} 7. O-O {[%emt 0:00:48]} d5 {[%emt 0:00:03]} 8. cxd5 {[%emt 0:08:59]} cxd5 {[%emt 0:01:33]} 9. Ne5 {[%emt 0:05:27]} O-O {[%emt 0:02:16]} 10. Nc3 {[%emt 0:00:26]} Bb7 {[%emt 0:01:27]} 11. Rc1 {[%emt 0:02:44]} Nbd7 {[%emt 0:04:20]} 12. Bf4 $11 {[%emt 0:02:09]} a6 {[%emt 0:04:42]} 13. Na4 {[%emt 0:03:49]} Rc8 {[%emt 0:02:55]} 14. Rxc8 {[%emt 0:14:20]} Qxc8 {[%emt 0:00:21]} 15. b4 {[%emt 0:01:30]} Bxb4 {[%emt 0:10:52]} 16. Qb3 {[%emt 0:00:29]} Ba5 {[%emt 0:00:55]} 17. Rc1 {[%emt 0:09:06]} Qa8 {[%emt 0:02:02]} 18. Rc7 {[%emt 0:18:08]} b5 {[%emt 0:11:57]} 19. Nxd7 {[%emt 0:01:13]} Bxc7 {[%emt 0:00:07]} 20. Nxf6+ {[%emt 0:00:48]} gxf6 {[%emt 0:00:06]} 21. Nc5 {[%emt 0:00:15]} Bb6 {[%emt 0:04:45]} 22. Bh6 {[%emt 0:12:08]} Bxc5 {[%emt 0:05:13]} 23. dxc5 {[%emt 0:00:42]} d4 {[%emt 0:05:25]} 24. Bxb7 {[%emt 0:06:27]} Qxb7 {[%emt 0:00:03]} 25. Bxf8 {[%emt 0:00:06]} Kxf8 {[%emt 0:00:03]} 26. Qb4 {[%emt 0:00:52]} Qd5 {[%emt 0:00:25]} 27. c6+ {[%emt 0:03:57]} Ke8 {[%emt 0:00:04]} 28. c7 {[%emt 0:00:42]} Kd7 {[%emt 0:00:04]} 29. Qf8 {[%emt 0:01:06]} Kxc7 {[%emt 0:00:05]} 30. Qxf7+ {[%emt 0:00:07]} Kc6 {[%emt 0:00:16]} 31. a3 {[%emt 0:00:57]} Qf5 {[%emt 0:02:50]} 32. Qa7 {[%emt 0:00:46]} Qb1+ {[%emt 0:00:07]} 33. Kg2 {[%emt 0:00:03]} Qe4+ {[%emt 0:00:05]} 34. Kg1 {[%emt 0:00:24]} Qxe2 {[%emt 0:00:20]} 35. Qxd4 {[%emt 0:00:06]} Qe1+ {[%emt 0:00:54]} 36. Kg2 {[%emt 0:00:02]} Qe5 {[%emt 0:00:07]} 37. Qa7 {[%emt 0:00:34]} Qe4+ {[%emt 0:01:54]} 38. Kh3 {[%emt 0:00:08]} Qf5+ {[%emt 0:09:59]} 39. Kg2 {[%emt 0:00:02]} Qe4+ {[%emt 0:02:45]} 40. Kh3 {[%emt 0:00:00]} Qf5+ {[%emt 0:07:17]} 41. Kg2 {[%emt 0:00:08]} Qe4+ {[%emt 0:00:11]} 1/2-1/2